[Event "CAMPEONATO NACIONAL ABSOLUTO DE CHILE 2019"]
[Site "Torre ENTEL, Chile"]
[Date "2019.02.25"]
[Round "8.6"]
[White "Garcia Cardenas, Pablo"]
[Black "Olivares Olivares, Claudio"]
[Result "1-0"]
[TimeControl "90 minutos mas 30 segundos incremento por movida"]
[WhiteTitle "IM"]
[BlackTitle "FM"]
[WhiteFideId "3406903"]
[BlackFideId "3400786"]
[WhiteElo "2449"]
[BlackElo "2387"]

1. d4 {[%clk 01:30:57]} {[%emt 00:00:02]} Nf6 {[%clk 01:30:55]} {[%emt
00:00:05]} 2. c4 {[%clk 01:31:23]} {[%emt 00:00:04]} c5 {[%clk 01:31:18]}
{[%emt 00:00:06]} 3. d5 {[%clk 01:31:45]} {[%emt 00:00:08]} e6 {[%clk
01:31:42]} {[%emt 00:00:06]} 4. Nc3 {[%clk 01:32:12]} {[%emt 00:00:04]} exd5
{[%clk 01:32:05]} {[%emt 00:00:06]} 5. cxd5 {[%clk 01:32:39]} {[%emt 00:00:04]}
d6 {[%clk 01:32:10]} {[%emt 00:00:25]} 6. e4 {[%clk 01:33:04]} {[%emt
00:00:05]} g6 {[%clk 01:32:33]} {[%emt 00:00:05]} 7. f4 {[%clk 01:33:30]}
{[%emt 00:00:06]} Bg7 {[%clk 01:32:57]} {[%emt 00:00:05]} 8. Bb5+ {[%clk
01:33:56]} {[%emt 00:00:06]} Nfd7 {[%clk 01:33:19]} {[%emt 00:00:07]} 9. Bd3
{[%clk 01:34:21]} {[%emt 00:00:05]} O-O {[%clk 01:33:43]} {[%emt 00:00:06]} 10.
Nf3 {[%clk 01:34:46]} {[%emt 00:00:05]} Na6 {[%clk 01:34:07]} {[%emt 00:00:05]}
11. O-O {[%clk 01:34:33]} {[%emt 00:00:44]} Nc7 {[%clk 01:34:12]} {[%emt
00:00:25]} 12. a4 {[%clk 01:31:48]} {[%emt 00:03:16]} a6 {[%clk 01:34:22]}
{[%emt 00:00:19]} 13. f5 {[%clk 01:30:10]} {[%emt 00:02:10]} Rb8 {[%clk
01:31:43]} {[%emt 00:03:07]} 14. Bg5 {[%clk 01:25:18]} {[%emt 00:05:23]} Bf6
{[%clk 01:31:54]} {[%emt 00:00:18]} 15. Bxf6 {[%clk 01:13:38]} {[%emt
00:12:12]} Qxf6 {[%clk 01:32:03]} {[%emt 00:00:19]} 16. Kh1 {[%clk 01:14:04]}
{[%emt 00:00:05]} b5 {[%clk 01:30:09]} {[%emt 00:02:23]} 17. e5 {[%clk
01:07:14]} {[%emt 00:07:21]} dxe5 {[%clk 01:24:52]} {[%emt 00:05:47]} 18. fxg6
{[%clk 01:00:30]} {[%emt 00:07:14]} hxg6 {[%clk 01:25:06]} {[%emt 00:00:15]} 19.
Nd4 {[%clk 00:55:07]} {[%emt 00:05:54]} Qh4 {[%clk 01:22:13]} {[%emt 00:03:22]}
20. Nc6 {[%clk 00:54:54]} {[%emt 00:00:43]} Rb6 {[%clk 01:19:52]} {[%emt
00:02:51]} 21. g3 {[%clk 00:35:41]} {[%emt 00:19:45]} Qh6 {[%clk 01:15:19]}
{[%emt 00:05:01]} 22. a5 {[%clk 00:34:02]} {[%emt 00:02:11]} Rb7 {[%clk
01:15:43]} {[%emt 00:00:06]} 23. Ne7+ {[%clk 00:33:24]} {[%emt 00:01:09]} Kg7
{[%clk 01:14:53]} {[%emt 00:01:19]} 24. Ne4 {[%clk 00:33:42]} {[%emt 00:00:12]}
Nxd5 {[%clk 00:54:30]} {[%emt 00:20:53]} 25. Nxd5 {[%clk 00:33:48]} {[%emt
00:00:26]} Rh8 {[%clk 00:54:00]} {[%emt 00:00:59]} 26. Qe2 {[%clk 00:27:23]}
{[%emt 00:06:56]} Rb8 {[%clk 00:46:05]} {[%emt 00:08:24]} 27. Nxc5 {[%clk
00:22:33]} {[%emt 00:05:21]} e4 {[%clk 00:46:28]} {[%emt 00:00:06]} 28. Nxd7
{[%clk 00:19:18]} {[%emt 00:03:45]} Bxd7 {[%clk 00:46:52]} {[%emt 00:00:05]} 29.
Qf2 {[%clk 00:19:10]} {[%emt 00:00:39]} Bf5 {[%clk 00:46:31]} {[%emt 00:00:51]}
30. Bc2 {[%clk 00:18:05]} {[%emt 00:01:35]} Rh7 {[%clk 00:45:05]} {[%emt
00:01:55]} 31. Qd4+ {[%clk 00:15:59]} {[%emt 00:02:37]} Kf8 {[%clk 00:45:25]}
{[%emt 00:00:09]} 32. Rf2 {[%clk 00:15:54]} {[%emt 00:00:35]} Rc8 {[%clk
00:45:20]} {[%emt 00:00:35]} 33. Ne3 {[%clk 00:14:38]} {[%emt 00:01:47]} Qg5
{[%clk 00:45:01]} {[%emt 00:00:48]} 34. Kg1 {[%clk 00:11:46]} {[%emt 00:03:23]}
Kg8 {[%clk 00:42:59]} {[%emt 00:02:32]} 35. Bxe4 {[%clk 00:09:08]} {[%emt
00:03:09]} Rh4 {[%clk 00:41:26]} {[%emt 00:02:02]} 36. Nxf5 {[%clk 00:07:38]}
{[%emt 00:02:01]} gxf5 {[%clk 00:41:47]} {[%emt 00:00:08]} 37. Rxf5 {[%clk
00:08:02]} {[%emt 00:00:06]} Qg6 {[%clk 00:40:57]} {[%emt 00:01:19]} 38. Qe5
{[%clk 00:06:47]} {[%emt 00:01:46]} Rg4 {[%clk 00:40:55]} {[%emt 00:00:30]} 39.
Bf3 {[%clk 00:06:58]} {[%emt 00:00:20]} 1-0

[ePGN "0.1;DGT LiveChess/2.2.3"]

[Event "CAMPEONATO NACIONAL ABSOLUTO DE CHILE 2019"]
[Site "Torre ENTEL, Chile"]
[Date "2019.02.26"]
[Round "9.1"]
[White "Olivares Olivares, Claudio"]
[Black "Gasic Merino, Franco"]
[Result "1-0"]
[TimeControl "90 minutos mas 30 segundos incremento por movida"]
[WhiteTitle "FM"]
[WhiteFideId "3400786"]
[BlackFideId "3414370"]
[WhiteElo "2387"]
[BlackElo "2189"]

1. e4 {[%clk 01:30:58]} d5 {[%clk 01:30:59]} {[%emt 00:00:02]} 2. exd5 {[%clk
01:31:19]} {[%emt 00:00:08]} Nf6 {[%clk 01:31:28]} {[%emt 00:00:02]} 3. d4
{[%clk 01:31:10]} {[%emt 00:00:41]} Bg4 {[%clk 01:31:54]} {[%emt 00:00:02]} 4.
f3 {[%clk 01:31:18]} {[%emt 00:00:21]} Bf5 {[%clk 01:32:14]} {[%emt 00:00:10]}
5. Bb5+ {[%clk 01:31:39]} {[%emt 00:00:09]} Nbd7 {[%clk 01:32:32]} {[%emt
00:00:13]} 6. c4 {[%clk 01:31:58]} {[%emt 00:00:11]} e6 {[%clk 01:32:51]}
{[%emt 00:00:12]} 7. dxe6 {[%clk 01:32:21]} {[%emt 00:00:07]} Bxe6 {[%clk
01:33:17]} {[%emt 00:00:04]} 8. d5 {[%clk 01:32:43]} {[%emt 00:00:07]} Bf5
{[%clk 01:33:38]} {[%emt 00:00:09]} 9. Nc3 {[%clk 01:33:06]} {[%emt 00:00:06]}
Bc5 {[%clk 01:33:55]} {[%emt 00:00:14]} 10. Qe2+ {[%clk 01:33:30]} {[%emt
00:00:06]} Kf8 {[%clk 01:34:11]} {[%emt 00:00:14]} 11. Be3 {[%clk 01:33:53]}
{[%emt 00:00:07]} Qe7 {[%clk 01:34:06]} {[%emt 00:00:36]} 12. Bxc5 {[%clk
01:26:36]} {[%emt 00:07:46]} Nxc5 {[%clk 01:34:17]} {[%emt 00:00:19]} 13. Qxe7+
{[%clk 01:26:53]} {[%emt 00:00:12]} Kxe7 {[%clk 01:34:46]} {[%emt 00:00:01]} 14.
g4 {[%clk 01:23:12]} {[%emt 00:04:10]} Bg6 {[%clk 01:34:18]} {[%emt 00:00:58]}
15. Nh3 {[%clk 01:23:18]} {[%emt 00:00:24]} a6 {[%clk 01:33:39]} {[%emt
00:01:10]} 16. Ba4 {[%clk 01:23:40]} {[%emt 00:00:07]} Nd3+ {[%clk 01:33:14]}
{[%emt 00:00:55]} 17. Kd2 {[%clk 01:24:05]} {[%emt 00:00:05]} Nxb2 {[%clk
01:29:50]} {[%emt 00:03:55]} 18. Rhe1+ {[%clk 01:24:22]} {[%emt 00:00:12]} Kd6
{[%clk 01:27:30]} {[%emt 00:02:50]} 19. Bb3 {[%clk 01:24:45]} {[%emt 00:00:06]}
Nd3 {[%clk 01:25:40]} {[%emt 00:02:20]} 20. Re3 {[%clk 01:24:52]} {[%emt
00:00:23]} Nc5 {[%clk 01:25:18]} {[%emt 00:00:53]} 21. Rae1 {[%clk 01:04:43]}
{[%emt 00:20:39]} h6 {[%clk 00:44:06]} {[%emt 00:41:42]} 22. Nf4 {[%clk
01:00:30]} {[%emt 00:04:42]} Bh7 {[%clk 00:44:27]} {[%emt 00:00:10]} 23. h4
{[%clk 00:57:54]} {[%emt 00:03:06]} g5 {[%clk 00:41:01]} {[%emt 00:03:55]} 24.
Nh3 {[%clk 00:57:00]} {[%emt 00:01:24]} gxh4 {[%clk 00:36:31]} {[%emt
00:05:00]} 25. Nf4 {[%clk 00:57:10]} {[%emt 00:00:19]} Rae8 {[%clk 00:33:11]}
{[%emt 00:03:50]} 26. Rxe8 {[%clk 00:57:24]} {[%emt 00:00:17]} Rxe8 {[%clk
00:31:16]} {[%emt 00:02:25]} 27. Rh1 {[%clk 00:57:48]} {[%emt 00:00:06]} Bg6
{[%clk 00:21:59]} {[%emt 00:09:47]} 28. Rxh4 {[%clk 00:57:51]} {[%emt
00:00:25]} Rh8 {[%clk 00:22:17]} {[%emt 00:00:13]} 29. g5 {[%clk 00:52:06]}
{[%emt 00:06:15]} Ng8 {[%clk 00:21:55]} {[%emt 00:00:53]} 30. Nxg6 {[%emt
00:00:59]} fxg6 31. Bc2 {[%clk 00:51:58]} {[%emt 00:00:10]} Nd7 {[%clk
00:22:34]} {[%emt 00:00:20]} 32. f4 {[%clk 00:47:16]} {[%emt 00:05:12]} Nf8
{[%clk 00:22:00]} {[%emt 00:01:06]} 33. Ne4+ {[%clk 00:47:38]} {[%emt
00:00:07]} Ke7 {[%clk 00:18:04]} {[%emt 00:04:48]} 34. Nc5 {[%clk 00:47:59]}
Rh7 {[%clk 00:16:11]} {[%emt 00:02:10]} 35. gxh6 {[%clk 00:47:51]} {[%emt
00:00:37]} Rxh6 {[%clk 00:15:53]} {[%emt 00:00:49]} 36. Rxh6 {[%clk 00:48:10]}
{[%emt 00:00:07]} Nxh6 {[%clk 00:16:21]} {[%emt 00:00:06]} 37. Nxb7 {[%clk
00:48:28]} {[%emt 00:00:11]} Nf7 {[%clk 00:10:19]} {[%emt 00:07:31]} 38. Nc5
{[%clk 00:45:52]} {[%emt 00:02:08]} Nd6 {[%clk 00:10:39]} {[%emt 00:00:10]} 39.
Kc3 {[%clk 00:45:00]} {[%emt 00:01:21]} a5 {[%clk 00:11:05]} {[%emt 00:00:05]}
40. a4 {[%clk 00:45:00]} {[%emt 00:00:30]} Nf5 {[%clk 00:10:35]} {[%emt
00:01:00]} 41. Nb7 {[%clk 00:44:05]} {[%emt 00:01:24]} c6 {[%clk 00:06:44]}
{[%emt 00:04:22]} 42. Nxa5 {[%clk 00:42:37]} {[%emt 00:01:57]} cxd5 {[%clk
00:06:42]} {[%emt 00:00:31]} 43. cxd5 {[%clk 00:43:02]} {[%emt 00:00:05]} Nd7
{[%clk 00:04:08]} {[%emt 00:03:04]} 44. Bxf5 {[%clk 00:41:45]} {[%emt
00:01:47]} gxf5 {[%clk 00:04:23]} {[%emt 00:00:16]} 45. Nc4 {[%clk 00:42:10]}
{[%emt 00:00:05]} Nc5 {[%clk 00:03:23]} {[%emt 00:01:30]} 46. a5 {[%clk
00:42:27]} {[%emt 00:00:12]} Na6 {[%clk 00:03:13]} {[%emt 00:00:40]} 47. Kd4
{[%clk 00:42:47]} {[%emt 00:00:10]} Kf6 {[%clk 00:03:42]} {[%emt 00:00:02]} 48.
Ne3 {[%clk 00:42:47]} {[%emt 00:00:29]} Nb4 {[%clk 00:03:46]} {[%emt 00:00:26]}
49. Kc4 {[%clk 00:43:05]} {[%emt 00:00:12]} Na6 {[%clk 00:03:43]} {[%emt
00:00:34]} 50. Kb5 {[%clk 00:43:26]} {[%emt 00:00:08]} 1-0

[Event "CAMPEONATO NACIONAL ABSOLUTO DE CHILE 2019"]
[Site "Torre ENTEL, Chile"]
[Date "2019.02.26"]
[Round "9.2"]
[White "Tapia Fuentes, Jaime"]
[Black "Garcia Cardenas, Pablo"]
[Result "1/2-1/2"]
[TimeControl "90 minutos mas 30 segundos incremento por movida"]
[WhiteTitle "FM"]
[BlackTitle "IM"]
[WhiteFideId "3403025"]
[BlackFideId "3406903"]
[WhiteElo "2259"]
[BlackElo "2449"]

1. e4 {[%clk 01:16:39]} {[%emt 00:14:20]} c6 {[%clk 01:30:57]} {[%emt
00:00:04]} 2. d4 {[%clk 01:15:52]} {[%emt 00:01:17]} d5 {[%clk 01:31:22]}
{[%emt 00:00:05]} 3. Nc3 {[%clk 01:16:18]} {[%emt 00:00:04]} dxe4 {[%clk
01:31:48]} {[%emt 00:00:04]} 4. Nxe4 {[%clk 01:16:43]} {[%emt 00:00:05]} Bf5
{[%clk 01:32:07]} {[%emt 00:00:12]} 5. Ng3 {[%clk 01:17:06]} {[%emt 00:00:06]}
Bg6 {[%clk 01:32:33]} {[%emt 00:00:04]} 6. h4 {[%clk 01:17:22]} {[%emt
00:00:15]} h6 {[%clk 01:32:58]} {[%emt 00:00:05]} 7. Nf3 {[%clk 01:17:43]}
{[%emt 00:00:08]} e6 {[%clk 01:33:22]} {[%emt 00:00:06]} 8. h5 {[%clk
01:14:05]} {[%emt 00:04:08]} Bh7 {[%clk 01:33:47]} {[%emt 00:00:05]} 9. Bd3
{[%clk 01:14:32]} {[%emt 00:00:03]} Bxd3 {[%clk 01:34:12]} {[%emt 00:00:05]} 10.
Qxd3 {[%clk 01:14:56]} {[%emt 00:00:06]} Nf6 {[%clk 01:31:42]} {[%emt
00:03:00]} 11. Bd2 {[%clk 01:14:43]} {[%emt 00:00:43]} c5 {[%clk 01:30:51]}
{[%emt 00:01:21]} 12. O-O-O {[%clk 01:13:20]} {[%emt 00:01:53]} Nc6 {[%clk
01:29:28]} {[%emt 00:01:54]} 13. Be3 {[%clk 01:00:05]} {[%emt 00:13:45]} Qa5
{[%clk 01:15:59]} {[%emt 00:13:59]} 14. Qb3 {[%clk 00:51:33]} {[%emt 00:09:04]}
O-O-O {[%clk 01:12:02]} {[%emt 00:04:24]} 15. Ne5 {[%clk 00:41:28]} {[%emt
00:10:34]} Qc7 {[%clk 01:11:01]} {[%emt 00:01:32]} 16. Nxc6 {[%clk 00:25:07]}
{[%emt 00:16:51]} Qxc6 {[%clk 01:11:25]} {[%emt 00:00:06]} 17. dxc5 {[%clk
00:24:35]} {[%emt 00:01:02]} Bxc5 {[%clk 01:11:16]} {[%emt 00:00:38]} 18. Bxc5
{[%clk 00:22:12]} {[%emt 00:02:54]} Qxc5 {[%clk 01:11:42]} {[%emt 00:00:04]} 19.
Qf3 {[%clk 00:22:30]} {[%emt 00:00:11]} Qa5 {[%clk 01:04:20]} {[%emt 00:07:52]}
20. a3 {[%clk 00:21:57]} {[%emt 00:01:03]} Rxd1+ {[%clk 01:04:39]} {[%emt
00:00:11]} 21. Rxd1 {[%clk 00:22:19]} {[%emt 00:00:08]} Rd8 {[%clk 01:05:05]}
{[%emt 00:00:04]} 22. Rxd8+ {[%clk 00:20:30]} {[%emt 00:02:19]} Kxd8 {[%clk
01:05:23]} {[%emt 00:00:12]} 23. c3 {[%clk 00:13:33]} {[%emt 00:07:28]} Qb5
{[%clk 01:00:48]} {[%emt 00:05:05]} 24. Kc2 {[%clk 00:11:59]} {[%emt 00:02:02]}
Ke7 {[%clk 00:59:17]} {[%emt 00:02:02]} 25. Qd3 {[%clk 00:08:38]} {[%emt
00:03:49]} Qa4+ {[%clk 00:52:10]} {[%emt 00:07:39]} 26. Kc1 {[%clk 00:08:44]}
{[%emt 00:00:23]} Qf4+ {[%clk 00:43:56]} {[%emt 00:08:44]} 27. Qd2 {[%clk
00:09:07]} {[%emt 00:00:08]} Nd5 {[%clk 00:43:13]} {[%emt 00:01:12]} 28. Nf1
{[%clk 00:06:28]} {[%emt 00:03:08]} Qxd2+ {[%clk 00:34:19]} {[%emt 00:09:26]}
29. Kxd2 {[%clk 00:06:50]} {[%emt 00:00:07]} f5 {[%clk 00:34:45]} {[%emt
00:00:05]} 30. c4 {[%clk 00:03:13]} {[%emt 00:04:07]} Nf6 {[%clk 00:31:21]}
{[%emt 00:03:54]} 31. b4 {[%clk 00:02:42]} {[%emt 00:01:01]} Nxh5 {[%clk
00:31:44]} {[%emt 00:00:07]} 32. c5 {[%clk 00:02:27]} {[%emt 00:00:45]} Nf4
{[%clk 00:22:04]} {[%emt 00:10:10]} 33. Ne3 {[%clk 00:02:42]} {[%emt 00:00:14]}
g5 {[%clk 00:19:11]} {[%emt 00:03:24]} 34. g3 {[%clk 00:02:06]} {[%emt
00:01:06]} Nd5 {[%clk 00:19:02]} {[%emt 00:00:39]} 35. Nc4 {[%clk 00:02:29]}
{[%emt 00:00:07]} b6 {[%clk 00:17:57]} {[%emt 00:01:35]} 36. cxb6 {[%clk
00:00:57]} {[%emt 00:02:02]} axb6 {[%clk 00:14:15]} {[%emt 00:04:12]} 37. b5
{[%clk 00:00:42]} {[%emt 00:00:45]} h5 {[%clk 00:14:14]} {[%emt 00:00:31]} 38.
a4 {[%clk 00:00:43]} {[%emt 00:00:30]} h4 {[%clk 00:14:33]} {[%emt 00:00:12]}
39. gxh4 {[%clk 00:01:09]} {[%emt 00:00:04]} gxh4 {[%clk 00:15:01]} {[%emt
00:00:01]} 40. Ke1 {[%clk 00:01:18]} {[%emt 00:00:20]} Kd7 {[%clk 00:14:00]}
{[%emt 00:01:32]} 41. a5 {[%clk 00:00:42]} {[%emt 00:01:07]} bxa5 {[%clk
00:14:03]} {[%emt 00:00:27]} 42. Nxa5 {[%clk 00:01:08]} {[%emt 00:00:04]} Kd6
{[%clk 00:12:34]} {[%emt 00:01:59]} 43. Nb3 {[%clk 00:00:41]} {[%emt 00:00:57]}
Nf4 {[%clk 00:09:31]} {[%emt 00:03:33]} 44. Kf1 {[%clk 00:01:00]} {[%emt
00:00:11]} Nd3 {[%clk 00:05:24]} {[%emt 00:04:38]} 45. b6 {[%clk 00:00:38]}
{[%emt 00:00:53]} e5 {[%clk 00:05:47]} {[%emt 00:00:07]} 46. Kg2 {[%clk
00:00:36]} {[%emt 00:00:31]} Kc6 {[%clk 00:04:15]} {[%emt 00:02:03]} 47. Kh3
{[%clk 00:00:48]} {[%emt 00:00:17]} Kxb6 {[%clk 00:02:41]} {[%emt 00:02:05]} 48.
Kxh4 {[%clk 00:01:05]} {[%emt 00:00:13]} Kc6 {[%clk 00:02:48]} {[%emt
00:00:23]} 49. f4 {[%clk 00:00:40]} {[%emt 00:00:55]} exf4 {[%clk 00:01:43]}
{[%emt 00:01:35]} 50. Nd4+ {[%clk 00:00:55]} {[%emt 00:00:14]} Kd5 {[%clk
00:02:09]} {[%emt 00:00:05]} 51. Nxf5 {[%clk 00:01:17]} {[%emt 00:00:08]} Ke4
{[%clk 00:02:24]} {[%emt 00:00:14]} 52. Ng3+ {[%clk 00:01:26]} {[%emt
00:00:20]} Ke3 {[%clk 00:02:47]} {[%emt 00:00:08]} 53. Nf5+ {[%clk 00:01:39]}
{[%emt 00:00:17]} Kf3 {[%clk 00:02:55]} {[%emt 00:00:23]} 54. Nd4+ {[%clk
00:01:53]} {[%emt 00:00:15]} Ke3 {[%clk 00:02:34]} {[%emt 00:00:51]} 55. Nf5+
{[%clk 00:02:14]} {[%emt 00:00:08]} Ke4 {[%clk 00:02:01]} {[%emt 00:01:04]} 56.
Ng3+ {[%clk 00:02:38]} {[%emt 00:00:06]} Ke3 {[%clk 00:00:58]} {[%emt
00:01:33]} 57. Nf5+ {[%clk 00:03:01]} {[%emt 00:00:09]} Kf3 {[%clk 00:01:01]}
{[%emt 00:00:25]} 58. Nd4+ {[%clk 00:03:19]} {[%emt 00:00:12]} Ke4 {[%clk
00:01:22]} {[%emt 00:00:10]} 59. Ne6 {[%clk 00:03:44]} {[%emt 00:00:04]} f3
{[%clk 00:01:48]} {[%emt 00:00:04]} 60. Ng5+ {[%clk 00:04:07]} {[%emt
00:00:07]} Kf4 {[%clk 00:02:15]} {[%emt 00:00:04]} 61. Nxf3 {[%clk 00:04:33]}
{[%emt 00:00:04]} 1/2-1/2